[Event "Titled Tuesday Blitz March 28 Early 2023"]
[White "Sankalan Shah"]
[Black "QuiesPrecatio"]
[WhiteFideId "25600362"]
[WhiteElo "2118"]
[BlackElo "2452"]
[Result "0-1"]
[Round "06"]
[TimeControl "180+2"]
[Date "2023.03.28"]
[WhiteClock "0:00:13"]
[BlackClock "0:00:12"]

1. d4 {[%clk 0:02:36]}  Nf6 {[%clk 0:02:57]} 2. c4 {[%clk 0:02:35]}  e6 {[%clk 0:02:55]} 3. Nf3 {[%clk 0:02:34]}  b6 {[%clk 0:02:50]} 4. g3 {[%clk 0:02:30]}  Ba6 {[%clk 0:02:50]} 5. Bg2 {[%clk 0:02:31]}  Bxc4 {[%clk 0:02:49]} 6. O-O {[%clk 0:02:30]}  Be7 {[%clk 0:02:46]} 7. Nc3 {[%clk 0:02:30]}  c6 {[%clk 0:02:42]} 8. Ne5 {[%clk 0:02:15]}  Ba6 {[%clk 0:02:42]} 9. b3 {[%clk 0:02:14]}  O-O {[%clk 0:02:40]} 10. Bb2 {[%clk 0:02:13]}  d5 {[%clk 0:02:34]} 11. Rc1 {[%clk 0:02:13]}  Bb7 {[%clk 0:02:31]} 12. Qd2 {[%clk 0:02:10]}  Nbd7 {[%clk 0:02:29]} 13. Nd3 {[%clk 0:02:05]}  c5 {[%clk 0:02:22]} 14. dxc5 {[%clk 0:02:03]}  Nxc5 {[%clk 0:02:23]} 15. Rfd1 {[%clk 0:02:00]}  Nxd3 {[%clk 0:02:17]} 16. Qxd3 {[%clk 0:02:01]}  Rc8 {[%clk 0:02:13]} 17. e3 {[%clk 0:01:56]}  Qd7 {[%clk 0:02:03]} 18. Ne2 {[%clk 0:01:52]}  Rxc1 {[%clk 0:02:01]} 19. Rxc1 {[%clk 0:01:52]}  Rc8 {[%clk 0:02:01]} 20. Rxc8+ {[%clk 0:01:49]}  Qxc8 {[%clk 0:02:02]} 21. Nd4 {[%clk 0:01:46]}  Ba6 {[%clk 0:02:01]} 22. Qd2 {[%clk 0:01:42]}  Qc5 {[%clk 0:01:56]} 23. h4 {[%clk 0:01:37]}  h6 {[%clk 0:01:56]} 24. a3 {[%clk 0:01:35]}  Qc8 {[%clk 0:01:48]} 25. b4 {[%clk 0:01:32]}  Bc4 {[%clk 0:01:46]} 26. Nf3 {[%clk 0:01:24]}  Ne4 {[%clk 0:01:44]} 27. Qd1 {[%clk 0:01:12]}  a5 {[%clk 0:01:29]} 28. Qa4 {[%clk 0:00:58]}  axb4 {[%clk 0:01:27]} 29. axb4 {[%clk 0:00:58]}  Bf6 {[%clk 0:01:21]} 30. Bd4 {[%clk 0:00:50]}  Bxd4 {[%clk 0:01:19]} 31. Nxd4 {[%clk 0:00:51]}  Nc3 {[%clk 0:01:17]} 32. Qa7 {[%clk 0:00:49]}  e5 {[%clk 0:01:14]} 33. Nf3 {[%clk 0:00:44]}  Ne2+ {[%clk 0:01:11]} 34. Kh2 {[%clk 0:00:44]}  Qf5 {[%clk 0:01:00]} 35. Qb8+ {[%clk 0:00:36]}  Kh7 {[%clk 0:00:58]} 36. Qxe5 {[%clk 0:00:36]}  Qxe5 {[%clk 0:00:57]} 37. Nxe5 {[%clk 0:00:37]}  f6 {[%clk 0:00:53]} 38. Nc6 {[%clk 0:00:22]}  b5 {[%clk 0:00:37]} 39. Bf3 {[%clk 0:00:20]}  Nc3 {[%clk 0:00:35]} 40. Nd4 {[%clk 0:00:19]}  Na2 {[%clk 0:00:34]} 41. Kg2 {[%clk 0:00:19]}  Nxb4 {[%clk 0:00:33]} 42. Bg4 {[%clk 0:00:17]}  g6 {[%clk 0:00:32]} 43. Bd7 {[%clk 0:00:16]}  f5 {[%clk 0:00:17]} 44. Bxb5 {[%clk 0:00:16]}  Bxb5 {[%clk 0:00:17]} 45. Nxb5 {[%clk 0:00:17]}  Kg7 {[%clk 0:00:17]} 46. Nd4 {[%clk 0:00:16]}  Kf6 {[%clk 0:00:17]} 47. Kf3 {[%clk 0:00:16]}  g5 {[%clk 0:00:17]} 48. hxg5+ {[%clk 0:00:16]}  hxg5 {[%clk 0:00:18]} 49. Nb5 {[%clk 0:00:16]}  Ke5 {[%clk 0:00:17]} 50. Nd4 {[%clk 0:00:15]}  g4+ {[%clk 0:00:12]} 51. Ke2 {[%clk 0:00:15]}  Ke4 {[%clk 0:00:12]} 52. Nb3 {[%clk 0:00:14]}  Nc6 {[%clk 0:00:08]} 53. Nd2+ {[%clk 0:00:13]}  Ke5 {[%clk 0:00:08]} 54. Nb3 {[%clk 0:00:14]}  Ne7 {[%clk 0:00:06]} 55. Kd3 {[%clk 0:00:14]}  Ng8 {[%clk 0:00:06]} 56. Nd4 {[%clk 0:00:14]}  Nf6 {[%clk 0:00:07]} 57. Nc6+ {[%clk 0:00:14]}  Kd6 {[%clk 0:00:07]} 58. Nd4 {[%clk 0:00:14]}  Ke5 {[%clk 0:00:08]} 59. Ke2 {[%clk 0:00:14]}  Ne4 {[%clk 0:00:08]} 60. Nb3 {[%clk 0:00:14]}  Nc3+ {[%clk 0:00:08]} 61. Kd3 {[%clk 0:00:12]}  Nd1 {[%clk 0:00:09]} 62. Ke2 {[%clk 0:00:12]}  Nb2 {[%clk 0:00:09]} 63. Nd4 {[%clk 0:00:13]}  Nc4 {[%clk 0:00:10]} 64. Nc6+ {[%clk 0:00:13]}  Ke4 {[%clk 0:00:10]} 65. Nd4 {[%clk 0:00:13]}  Ne5 {[%clk 0:00:10]} 66. Nb3 {[%clk 0:00:12]}  Nf3 {[%clk 0:00:09]} 67. Nc5+ {[%clk 0:00:13]}  Ke5 {[%clk 0:00:09]} 68. Nd3+ {[%clk 0:00:13]}  Ke6 {[%clk 0:00:09]} 69. Nc5+ {[%clk 0:00:13]}  Kd6 {[%clk 0:00:09]} 70. Nd3 {[%clk 0:00:13]}  Ng5 {[%clk 0:00:10]} 71. Nf4 {[%clk 0:00:13]}  Ne4 {[%clk 0:00:10]} 72. Nd3 {[%clk 0:00:12]}  Kc6 {[%clk 0:00:11]} 73. Ne5+ {[%clk 0:00:11]}  Kc5 {[%clk 0:00:11]} 74. Nd3+ {[%clk 0:00:11]}  Kc4 {[%clk 0:00:11]} 75. Nf4 {[%clk 0:00:11]}  d4 {[%clk 0:00:11]} 76. exd4 {[%clk 0:00:12]}  Kxd4 {[%clk 0:00:11]} 77. Ne6+ {[%clk 0:00:12]}  Ke5 {[%clk 0:00:12]} 78. Nf4 {[%clk 0:00:11]}  Kd4 {[%clk 0:00:11]} 79. Ne6+ {[%clk 0:00:10]}  Kd5 {[%clk 0:00:12]} 80. Nf4+ {[%clk 0:00:11]}  Ke5 {[%clk 0:00:13]} 81. Ng6+ {[%clk 0:00:11]}  Kd4 {[%clk 0:00:13]} 82. Nf4 {[%clk 0:00:11]}  Nc3+ {[%clk 0:00:13]} 83. Kd2 {[%clk 0:00:11]}  Ne4+ {[%clk 0:00:13]} 84. Ke2 {[%clk 0:00:12]}  Ng5 {[%clk 0:00:13]} 85. Nh5 {[%clk 0:00:11]}  Nf3 {[%clk 0:00:13]} 86. Ng7 {[%clk 0:00:11]}  Ke4 {[%clk 0:00:13]} 87. Nh5 {[%clk 0:00:11]}  Nd4+ {[%clk 0:00:13]} 88. Kd2 {[%clk 0:00:11]}  Kf3 {[%clk 0:00:14]} 89. Ke1 {[%clk 0:00:10]}  Nc2+ {[%clk 0:00:14]} 90. Kf1 {[%clk 0:00:10]}  Nb4 {[%clk 0:00:15]} 91. Ng7 {[%clk 0:00:11]}  Ke4 {[%clk 0:00:14]} 92. Ne6 {[%clk 0:00:11]}  Nd3 {[%clk 0:00:14]} 93. Ng5+ {[%clk 0:00:11]}  Ke5 {[%clk 0:00:14]} 94. Nf7+ {[%clk 0:00:10]}  Kd4 {[%clk 0:00:13]} 95. Nd6 {[%clk 0:00:10]}  Ke5 {[%clk 0:00:13]} 96. Nf7+ {[%clk 0:00:11]}  Ke4 {[%clk 0:00:13]} 97. Nd6+ {[%clk 0:00:11]}  Kf3 {[%clk 0:00:12]} 98. Nc4 {[%clk 0:00:11]}  Nxf2 {[%clk 0:00:11]} 99. Ne5+ {[%clk 0:00:11]}  Kxg3 {[%clk 0:00:11]} 100. Ng6 {[%clk 0:00:11]}  Ne4 {[%clk 0:00:11]} 101. Kg1 {[%clk 0:00:11]}  f4 {[%clk 0:00:11]} 102. Kf1 {[%clk 0:00:11]}  f3 {[%clk 0:00:12]} 103. Ne5 {[%clk 0:00:11]}  Nd2+ {[%clk 0:00:12]} 104. Ke1 {[%clk 0:00:11]}  f2+ {[%clk 0:00:12]} 105. Kxd2 {[%clk 0:00:12]}  f1=Q {[%clk 0:00:13]} 106. Nxg4 {[%clk 0:00:13]}  Kxg4 {[%clk 0:00:12]} 0-1


[Site "https://www.chess.com"]

[Event "Titled Tuesday Blitz March 28 Early 2023"]
[White "Bongo Akanga Ndjila, Barthelemy"]
[Black "Miszler, Levente"]
[WhiteFideId "10609431"]
[BlackFideId "763276"]
[WhiteElo "1768"]
[BlackElo "2176"]
[Result "0-1"]
[Round "06"]
[TimeControl "180+2"]
[Date "2023.03.28"]
[WhiteClock "0:00:20"]
[BlackClock "0:01:02"]

1. d4 {[%clk 0:02:36]}  Nf6 {[%clk 0:02:58]} 2. c4 {[%clk 0:02:37]}  c5 {[%clk 0:02:56]} 3. d5 {[%clk 0:02:36]}  e6 {[%clk 0:02:56]} 4. Nc3 {[%clk 0:02:35]}  exd5 {[%clk 0:02:56]} 5. cxd5 {[%clk 0:02:36]}  d6 {[%clk 0:02:56]} 6. Nf3 {[%clk 0:02:36]}  g6 {[%clk 0:02:56]} 7. Bf4 {[%clk 0:02:36]}  a6 {[%clk 0:02:56]} 8. a4 {[%clk 0:02:36]}  Bg7 {[%clk 0:02:55]} 9. e3 {[%clk 0:02:36]}  O-O {[%clk 0:02:56]} 10. h3 {[%clk 0:02:36]}  Ne8 {[%clk 0:02:53]} 11. Nd2 {[%clk 0:02:32]}  Nd7 {[%clk 0:02:52]} 12. Nc4 {[%clk 0:02:32]}  Qe7 {[%clk 0:02:51]} 13. Bd3 {[%clk 0:02:28]}  f5 {[%clk 0:02:48]} 14. O-O {[%clk 0:02:25]}  g5 {[%clk 0:02:46]} 15. Bh2 {[%clk 0:02:24]}  f4 {[%clk 0:02:45]} 16. exf4 {[%clk 0:02:23]}  gxf4 {[%clk 0:02:46]} 17. Re1 {[%clk 0:02:22]}  Ne5 {[%clk 0:02:41]} 18. Nxe5 {[%clk 0:02:18]}  Bxe5 {[%clk 0:02:38]} 19. Qf3 {[%clk 0:02:11]}  Qg7 {[%clk 0:02:32]} 20. Ne4 {[%clk 0:02:01]}  Bf5 {[%clk 0:02:18]} 21. Rab1 {[%clk 0:01:26]}  Nc7 {[%clk 0:02:00]} 22. b4 {[%clk 0:01:25]}  cxb4 {[%clk 0:01:56]} 23. Rxb4 {[%clk 0:01:25]}  Nxd5 {[%clk 0:01:56]} 24. Rc4 {[%clk 0:01:17]}  b5 {[%clk 0:01:54]} 25. axb5 {[%clk 0:01:16]}  axb5 {[%clk 0:01:55]} 26. Rc6 {[%clk 0:01:16]}  Nb4 {[%clk 0:01:51]} 27. Nxd6 {[%clk 0:01:10]}  Bxd3 {[%clk 0:01:39]} 28. Nxb5 {[%clk 0:00:43]}  Bxb5 {[%clk 0:01:34]} 29. Rb6 {[%clk 0:00:43]}  Nd3 {[%clk 0:01:25]} 30. Rb1 {[%clk 0:00:38]}  Bc4 {[%clk 0:01:19]} 31. Rb7 {[%clk 0:00:34]}  Qg6 {[%clk 0:01:12]} 32. Kh1 {[%clk 0:00:25]}  Rad8 {[%clk 0:01:07]} 33. Bg1 {[%clk 0:00:24]}  Bd5 {[%clk 0:01:07]} 34. Qd1 {[%clk 0:00:20]}  Bxg2+ {[%clk 0:01:02]} 0-1


[Site "https://www.chess.com"]

[Event "Titled Tuesday Blitz March 28 Early 2023"]
[White "Kornyukov, Alexey"]
[Black "Sowul, Bartosz"]
[WhiteFideId "4150457"]
[BlackFideId "1137590"]
[WhiteElo "2352"]
[BlackElo "2188"]
[Result "0-1"]
[Round "06"]
[TimeControl "180+2"]
[Date "2023.03.28"]
[WhiteClock "0:01:06"]
[BlackClock "0:01:16"]

1. e4 {[%clk 0:02:40]}  c5 {[%clk 0:02:59]} 2. Nf3 {[%clk 0:02:39]}  d6 {[%clk 0:02:59]} 3. c3 {[%clk 0:02:39]}  Nf6 {[%clk 0:02:59]} 4. Be2 {[%clk 0:02:37]}  g6 {[%clk 0:02:37]} 5. O-O {[%clk 0:02:36]}  Bg7 {[%clk 0:02:34]} 6. d3 {[%clk 0:02:30]}  O-O {[%clk 0:02:33]} 7. Be3 {[%clk 0:02:29]}  Nc6 {[%clk 0:02:31]} 8. Nbd2 {[%clk 0:02:26]}  e5 {[%clk 0:02:31]} 9. Nc4 {[%clk 0:02:22]}  b5 {[%clk 0:02:27]} 10. Ncd2 {[%clk 0:02:16]}  a6 {[%clk 0:02:25]} 11. c4 {[%clk 0:02:04]}  h6 {[%clk 0:02:16]} 12. b3 {[%clk 0:02:02]}  Ng4 {[%clk 0:02:10]} 13. Qc2 {[%clk 0:01:59]}  f5 {[%clk 0:02:07]} 14. exf5 {[%clk 0:01:56]}  gxf5 {[%clk 0:02:08]} 15. h3 {[%clk 0:01:43]}  Nf6 {[%clk 0:02:02]} 16. Nb1 {[%clk 0:01:37]}  f4 {[%clk 0:01:46]} 17. Bd2 {[%clk 0:01:35]}  Bf5 {[%clk 0:01:38]} 18. Nc3 {[%clk 0:01:32]}  Nb4 {[%clk 0:01:26]} 19. Qb1 {[%clk 0:01:26]}  bxc4 {[%clk 0:01:26]} 20. bxc4 {[%clk 0:01:24]}  Rb8 {[%clk 0:01:26]} 21. Ne4 {[%clk 0:01:18]}  Nxd3 {[%clk 0:01:17]} 22. Nxf6+ {[%clk 0:01:11]}  Qxf6 {[%clk 0:01:16]} 23. Qc1 {[%clk 0:01:06]}  Nxc1 {[%clk 0:01:16]} 0-1


[Site "https://www.chess.com"]

[Event "Titled Tuesday Blitz March 28 Early 2023"]
[White "dDobravcan"]
[Black "Olsson, William"]
[BlackFideId "1741721"]
[WhiteElo "2160"]
[BlackElo "2197"]
[Result "0-1"]
[Round "06"]
[TimeControl "180+2"]
[Date "2023.03.28"]
[WhiteClock "0:00:59"]
[BlackClock "0:00:11"]

1. e4 {[%clk 0:03:00]}  c5 {[%clk 0:02:58]} 2. b4 {[%clk 0:03:00]}  cxb4 {[%clk 0:02:57]} 3. Bb2 {[%clk 0:03:00]}  d5 {[%clk 0:02:57]} 4. exd5 {[%clk 0:03:00]}  Nf6 {[%clk 0:02:56]} 5. d4 {[%clk 0:02:56]}  Nxd5 {[%clk 0:02:55]} 6. Nf3 {[%clk 0:02:54]}  e6 {[%clk 0:02:54]} 7. Bc4 {[%clk 0:02:53]}  Nc6 {[%clk 0:02:52]} 8. O-O {[%clk 0:02:54]}  Be7 {[%clk 0:02:52]} 9. a3 {[%clk 0:02:54]}  bxa3 {[%clk 0:02:49]} 10. Nxa3 {[%clk 0:02:52]}  O-O {[%clk 0:02:49]} 11. Bb3 {[%clk 0:02:50]}  b6 {[%clk 0:02:48]} 12. c4 {[%clk 0:02:48]}  Nf6 {[%clk 0:02:43]} 13. Qd3 {[%clk 0:02:38]}  Bb7 {[%clk 0:02:34]} 14. Rad1 {[%clk 0:02:37]}  a5 {[%clk 0:02:29]} 15. Rfe1 {[%clk 0:02:36]}  a4 {[%clk 0:02:29]} 16. Bc2 {[%clk 0:02:28]}  Nb4 {[%clk 0:02:29]} 17. Qd2 {[%clk 0:02:27]}  Nxc2 {[%clk 0:02:24]} 18. Nxc2 {[%clk 0:02:27]}  a3 {[%clk 0:02:20]} 19. Ba1 {[%clk 0:02:24]}  Bxf3 {[%clk 0:02:15]} 20. gxf3 {[%clk 0:02:23]}  Qc7 {[%clk 0:02:13]} 21. Ne3 {[%clk 0:02:20]}  Rfd8 {[%clk 0:02:03]} 22. d5 {[%clk 0:02:19]}  exd5 {[%clk 0:01:54]} 23. cxd5 {[%clk 0:02:16]}  Qf4 {[%clk 0:01:45]} 24. Qe2 {[%clk 0:01:58]}  Bd6 {[%clk 0:01:38]} 25. Nf1 {[%clk 0:01:57]}  Re8 {[%clk 0:01:32]} 26. Qd3 {[%clk 0:01:57]}  Rxe1 {[%clk 0:01:31]} 27. Rxe1 {[%clk 0:01:56]}  h6 {[%clk 0:01:26]} 28. Ng3 {[%clk 0:01:55]}  Qg5 {[%clk 0:01:13]} 29. Kh1 {[%clk 0:01:46]}  Qxd5 {[%clk 0:01:09]} 30. Qc3 {[%clk 0:01:35]}  Qc5 {[%clk 0:00:50]} 31. Qd3 {[%clk 0:01:28]}  Bxg3 {[%clk 0:00:42]} 32. fxg3 {[%clk 0:01:26]}  Qd5 {[%clk 0:00:37]} 33. Qc3 {[%clk 0:01:23]}  b5 {[%clk 0:00:32]} 34. Kg2 {[%clk 0:01:21]}  Qc4 {[%clk 0:00:25]} 35. Qd2 {[%clk 0:01:11]}  Rc8 {[%clk 0:00:11]} 36. Bxf6 {[%clk 0:01:08]}  gxf6 {[%clk 0:00:08]} 37. Qxh6 {[%clk 0:01:08]}  Qc2+ {[%clk 0:00:08]} 38. Kh3 {[%clk 0:01:07]}  Qh7 {[%clk 0:00:08]} 39. Qxh7+ {[%clk 0:01:04]}  Kxh7 {[%clk 0:00:09]} 40. Re2 {[%clk 0:01:02]}  b4 {[%clk 0:00:09]} 41. Kg4 {[%clk 0:01:02]}  b3 {[%clk 0:00:09]} 42. h4 {[%clk 0:01:02]}  b2 {[%clk 0:00:09]} 43. Re3 {[%clk 0:01:01]}  a2 {[%clk 0:00:09]} 44. Kh5 {[%clk 0:01:00]}  b1=Q {[%clk 0:00:10]} 45. g4 {[%clk 0:00:59]}  Qg6# {[%clk 0:00:11]} 0-1


[Site "https://www.chess.com"]

[Event "Titled Tuesday Blitz March 28 Early 2023"]
[White "Sanchez, German"]
[Black "Mazurkiewicz, Michal"]
[WhiteFideId "4403959"]
[BlackFideId "1124943"]
[WhiteElo "1816"]
[BlackElo "2054"]
[Result "0-1"]
[Round "06"]
[TimeControl "180+2"]
[Date "2023.03.28"]
[WhiteClock "0:00:05"]
[BlackClock "0:01:47"]

1. e4 {[%clk 0:03:00]}  d6 {[%clk 0:02:58]} 2. d4 {[%clk 0:03:01]}  Nf6 {[%clk 0:02:58]} 3. Nc3 {[%clk 0:03:01]}  c6 {[%clk 0:02:58]} 4. Nf3 {[%clk 0:03:02]}  Bg4 {[%clk 0:02:56]} 5. Bc4 {[%clk 0:03:01]}  e6 {[%clk 0:02:56]} 6. Bg5 {[%clk 0:03:00]}  Be7 {[%clk 0:02:52]} 7. Qd3 {[%clk 0:02:59]}  d5 {[%clk 0:02:50]} 8. Bb3 {[%clk 0:02:57]}  dxe4 {[%clk 0:02:37]} 9. Nxe4 {[%clk 0:02:53]}  Bxf3 {[%clk 0:02:29]} 10. Qxf3 {[%clk 0:02:31]}  Nxe4 {[%clk 0:02:29]} 11. Bxe7 {[%clk 0:02:31]}  Qa5+ {[%clk 0:02:29]} 12. c3 {[%clk 0:02:24]}  Nxc3 {[%clk 0:02:29]} 13. bxc3 {[%clk 0:01:44]}  Kxe7 {[%clk 0:02:29]} 14. O-O {[%clk 0:01:43]}  Re8 {[%clk 0:02:27]} 15. Qh3 {[%clk 0:01:38]}  h6 {[%clk 0:02:25]} 16. Rfe1 {[%clk 0:01:38]}  Kf8 {[%clk 0:02:26]} 17. Re5 {[%clk 0:01:37]}  Qa3 {[%clk 0:02:12]} 18. Rae1 {[%clk 0:01:32]}  Nd7 {[%clk 0:02:12]} 19. Rh5 {[%clk 0:01:29]}  Nf6 {[%clk 0:02:03]} 20. Rh4 {[%clk 0:01:08]}  e5 {[%clk 0:01:58]} 21. Rxh6 {[%clk 0:00:19]}  exd4 {[%clk 0:01:57]} 22. Rh8+ {[%clk 0:00:13]}  Ng8 {[%clk 0:01:58]} 23. Rd1 {[%clk 0:00:05]}  Qe7 {[%clk 0:01:47]} 24. Qh7 {[%clk 0:00:05]}  Qe1+ {[%clk 0:01:47]} 0-1


[Site "https://www.chess.com"]

[Event "Titled Tuesday Blitz March 28 Early 2023"]
[White "Fernandez Garcia, Gumersindo"]
[Black "Michalski, Olaf"]
[WhiteFideId "24516740"]
[BlackFideId "1106740"]
[WhiteElo "2093"]
[BlackElo "2173"]
[Result "1-0"]
[Round "06"]
[TimeControl "180+2"]
[Date "2023.03.28"]
[WhiteClock "0:01:19"]
[BlackClock "0:00:04"]

1. e4 {[%clk 0:03:00]}  c5 {[%clk 0:02:57]} 2. Nf3 {[%clk 0:02:57]}  a6 {[%clk 0:02:57]} 3. d4 {[%clk 0:02:58]}  cxd4 {[%clk 0:02:57]} 4. Nxd4 {[%clk 0:02:59]}  Nf6 {[%clk 0:02:58]} 5. Nc3 {[%clk 0:02:59]}  e5 {[%clk 0:02:58]} 6. Nf3 {[%clk 0:02:56]}  Bb4 {[%clk 0:02:56]} 7. Bd3 {[%clk 0:02:52]}  d5 {[%clk 0:02:56]} 8. exd5 {[%clk 0:02:48]}  e4 {[%clk 0:02:47]} 9. Qe2 {[%clk 0:02:47]}  O-O {[%clk 0:02:30]} 10. Bxe4 {[%clk 0:02:46]}  Nxe4 {[%clk 0:02:21]} 11. Qxe4 {[%clk 0:02:40]}  Bxc3+ {[%clk 0:02:16]} 12. bxc3 {[%clk 0:02:37]}  Re8 {[%clk 0:02:02]} 13. Ne5 {[%clk 0:02:36]}  Qc7 {[%clk 0:01:27]} 14. O-O {[%clk 0:02:27]}  Qxe5 {[%clk 0:01:23]} 15. Qd3 {[%clk 0:02:24]}  Bf5 {[%clk 0:01:21]} 16. Qe3 {[%clk 0:02:07]}  Qxe3 {[%clk 0:01:08]} 17. Bxe3 {[%clk 0:02:03]}  Bxc2 {[%clk 0:00:57]} 18. Rac1 {[%clk 0:02:03]}  Bd3 {[%clk 0:00:52]} 19. Rfd1 {[%clk 0:02:03]}  Bc4 {[%clk 0:00:52]} 20. a3 {[%clk 0:01:59]}  Nd7 {[%clk 0:00:48]} 21. Rd4 {[%clk 0:01:57]}  b5 {[%clk 0:00:48]} 22. h3 {[%clk 0:01:52]}  Re5 {[%clk 0:00:39]} 23. d6 {[%clk 0:01:49]}  Rae8 {[%clk 0:00:38]} 24. a4 {[%clk 0:01:48]}  f6 {[%clk 0:00:32]} 25. axb5 {[%clk 0:01:48]}  axb5 {[%clk 0:00:30]} 26. Ra1 {[%clk 0:01:49]}  Rd5 {[%clk 0:00:24]} 27. Ra7 {[%clk 0:01:47]}  Rxd4 {[%clk 0:00:20]} 28. Bxd4 {[%clk 0:01:48]}  Rd8 {[%clk 0:00:20]} 29. g4 {[%clk 0:01:42]}  Kf7 {[%clk 0:00:20]} 30. f4 {[%clk 0:01:38]}  Ke6 {[%clk 0:00:19]} 31. Ra6 {[%clk 0:01:38]}  Bd5 {[%clk 0:00:16]} 32. f5+ {[%clk 0:01:37]}  Kf7 {[%clk 0:00:15]} 33. Kf2 {[%clk 0:01:34]}  g6 {[%clk 0:00:15]} 34. Kg3 {[%clk 0:01:32]}  g5 {[%clk 0:00:14]} 35. Ra5 {[%clk 0:01:29]}  Bc6 {[%clk 0:00:13]} 36. Ra6 {[%clk 0:01:28]}  Nb8 {[%clk 0:00:13]} 37. Rb6 {[%clk 0:01:27]}  Ke8 {[%clk 0:00:12]} 38. Bxf6 {[%clk 0:01:24]}  Rc8 {[%clk 0:00:11]} 39. Bxg5 {[%clk 0:01:23]}  Kd7 {[%clk 0:00:12]} 40. Bf4 {[%clk 0:01:23]}  Rg8 {[%clk 0:00:06]} 41. g5 {[%clk 0:01:22]}  h6 {[%clk 0:00:06]} 42. h4 {[%clk 0:01:23]}  hxg5 {[%clk 0:00:06]} 43. hxg5 {[%clk 0:01:24]}  Kc8 {[%clk 0:00:06]} 44. d7+ {[%clk 0:01:20]}  Kxd7 {[%clk 0:00:04]} 45. Rxb8 {[%clk 0:01:20]}  Rxb8 {[%clk 0:00:04]} 46. Bxb8 {[%clk 0:01:21]}  Ke7 {[%clk 0:00:04]} 47. Kf4 {[%clk 0:01:21]}  Kf7 {[%clk 0:00:04]} 48. g6+ {[%clk 0:01:19]} 1-0


[Site "https://www.chess.com"]

[Event "Titled Tuesday Blitz March 28 Early 2023"]
[White "BenchGM"]
[Black "Reprintsev, Alexander"]
[BlackFideId "14100541"]
[WhiteElo "2373"]
[BlackElo "2229"]
[Result "0-1"]
[Round "06"]
[TimeControl "180+2"]
[Date "2023.03.28"]
[WhiteClock "0:00:07"]
[BlackClock "0:00:24"]

1. d4 {[%clk 0:03:00]}  d5 {[%clk 0:02:56]} 2. Bg5 {[%clk 0:02:56]}  Nc6 {[%clk 0:02:54]} 3. Nf3 {[%clk 0:02:49]}  f6 {[%clk 0:02:54]} 4. Bh4 {[%clk 0:02:45]}  Nh6 {[%clk 0:02:53]} 5. e3 {[%clk 0:02:41]}  Nf5 {[%clk 0:02:52]} 6. Bg3 {[%clk 0:02:41]}  h5 {[%clk 0:02:53]} 7. Bd3 {[%clk 0:02:34]}  g5 {[%clk 0:02:48]} 8. Bxf5 {[%clk 0:02:31]}  Bxf5 {[%clk 0:02:48]} 9. h4 {[%clk 0:02:28]}  g4 {[%clk 0:02:45]} 10. Nfd2 {[%clk 0:02:27]}  e5 {[%clk 0:02:44]} 11. dxe5 {[%clk 0:02:22]}  fxe5 {[%clk 0:02:43]} 12. c3 {[%clk 0:02:20]}  Qd7 {[%clk 0:02:35]} 13. Qb3 {[%clk 0:02:17]}  O-O-O {[%clk 0:02:34]} 14. Na3 {[%clk 0:02:15]}  d4 {[%clk 0:02:25]} 15. cxd4 {[%clk 0:02:09]}  exd4 {[%clk 0:02:15]} 16. e4 {[%clk 0:02:03]}  Be6 {[%clk 0:02:14]} 17. Qa4 {[%clk 0:01:58]}  Kb8 {[%clk 0:02:04]} 18. Nb5 {[%clk 0:01:54]}  Rc8 {[%clk 0:02:04]} 19. Rc1 {[%clk 0:01:46]}  a6 {[%clk 0:02:04]} 20. Na3 {[%clk 0:01:40]}  Nb4 {[%clk 0:01:49]} 21. Qxd7 {[%clk 0:01:33]}  Bxd7 {[%clk 0:01:49]} 22. O-O {[%clk 0:01:30]}  Nxa2 {[%clk 0:01:44]} 23. Ra1 {[%clk 0:01:24]}  Nb4 {[%clk 0:01:43]} 24. Be5 {[%clk 0:01:22]}  Rh7 {[%clk 0:01:39]} 25. Bxd4 {[%clk 0:01:22]}  Bh6 {[%clk 0:01:28]} 26. Ndc4 {[%clk 0:01:20]}  g3 {[%clk 0:01:21]} 27. f3 {[%clk 0:01:18]}  Rd8 {[%clk 0:01:14]} 28. Be5 {[%clk 0:01:14]}  Bg7 {[%clk 0:01:07]} 29. Bxg3 {[%clk 0:01:12]}  b5 {[%clk 0:01:02]} 30. Ne5 {[%clk 0:01:05]}  Be6 {[%clk 0:00:56]} 31. Rac1 {[%clk 0:00:56]}  Kb7 {[%clk 0:00:54]} 32. Rfd1 {[%clk 0:00:44]}  Rhh8 {[%clk 0:00:50]} 33. Ng6 {[%clk 0:00:41]}  Rxd1+ {[%clk 0:00:47]} 34. Rxd1 {[%clk 0:00:42]}  Rg8 {[%clk 0:00:42]} 35. Ne7 {[%clk 0:00:40]}  Re8 {[%clk 0:00:37]} 36. Nd5 {[%clk 0:00:34]}  Bxd5 {[%clk 0:00:36]} 37. exd5 {[%clk 0:00:33]}  Bxb2 {[%clk 0:00:37]} 38. Nb1 {[%clk 0:00:31]}  a5 {[%clk 0:00:36]} 39. Nd2 {[%clk 0:00:29]}  a4 {[%clk 0:00:35]} 40. Ne4 {[%clk 0:00:20]}  a3 {[%clk 0:00:32]} 41. d6 {[%clk 0:00:19]}  Rxe4 {[%clk 0:00:26]} 42. d7 {[%clk 0:00:18]}  Nc6 {[%clk 0:00:26]} 43. fxe4 {[%clk 0:00:17]}  a2 {[%clk 0:00:26]} 44. Bf4 {[%clk 0:00:11]}  a1=Q {[%clk 0:00:22]} 45. Rxa1 {[%clk 0:00:11]}  Bxa1 {[%clk 0:00:22]} 46. Bg5 {[%clk 0:00:11]}  b4 {[%clk 0:00:23]} 47. d8=Q {[%clk 0:00:07]}  Nxd8 {[%clk 0:00:23]} 48. Bxd8 {[%clk 0:00:07]}  b3 {[%clk 0:00:24]} 0-1


[Site "https://www.chess.com"]

[Event "Titled Tuesday Blitz March 28 Early 2023"]
[White "Tarasova, Viktoriya"]
[Black "Thiel, Thomas"]
[WhiteFideId "4175840"]
[BlackFideId "4615964"]
[WhiteElo "2182"]
[BlackElo "2216"]
[Result "1-0"]
[Round "06"]
[TimeControl "180+2"]
[Date "2023.03.28"]
[WhiteClock "0:01:40"]
[BlackClock "0:00:45"]

1. d4 {[%clk 0:02:56]}  Nf6 {[%clk 0:02:56]} 2. c4 {[%clk 0:02:56]}  g6 {[%clk 0:02:56]} 3. Nc3 {[%clk 0:02:56]}  d5 {[%clk 0:02:56]} 4. cxd5 {[%clk 0:02:56]}  Nxd5 {[%clk 0:02:56]} 5. g3 {[%clk 0:02:57]}  Bg7 {[%clk 0:02:54]} 6. Bg2 {[%clk 0:02:57]}  Nb6 {[%clk 0:02:53]} 7. Nf3 {[%clk 0:02:57]}  O-O {[%clk 0:02:50]} 8. O-O {[%clk 0:02:57]}  Nc6 {[%clk 0:02:47]} 9. e3 {[%clk 0:02:56]}  a5 {[%clk 0:02:46]} 10. Re1 {[%clk 0:02:52]}  a4 {[%clk 0:02:42]} 11. Rb1 {[%clk 0:02:50]}  a3 {[%clk 0:02:41]} 12. b3 {[%clk 0:02:50]}  e5 {[%clk 0:02:24]} 13. d5 {[%clk 0:02:44]}  Ne7 {[%clk 0:02:23]} 14. e4 {[%clk 0:02:45]}  Bd7 {[%clk 0:02:15]} 15. Qe2 {[%clk 0:02:36]}  Nec8 {[%clk 0:02:13]} 16. Nb5 {[%clk 0:02:34]}  Bxb5 {[%clk 0:02:02]} 17. Qxb5 {[%clk 0:02:33]}  Nd6 {[%clk 0:02:02]} 18. Qe2 {[%clk 0:02:33]}  Re8 {[%clk 0:01:57]} 19. Nd2 {[%clk 0:02:27]}  Nb5 {[%clk 0:01:54]} 20. Qd3 {[%clk 0:02:23]}  Nd4 {[%clk 0:01:47]} 21. Nc4 {[%clk 0:02:23]}  Nxc4 {[%clk 0:01:45]} 22. bxc4 {[%clk 0:02:22]}  b6 {[%clk 0:01:33]} 23. Be3 {[%clk 0:02:09]}  Qd7 {[%clk 0:01:32]} 24. f4 {[%clk 0:02:09]}  f6 {[%clk 0:01:15]} 25. Bxd4 {[%clk 0:02:04]}  exd4 {[%clk 0:01:15]} 26. Qxd4 {[%clk 0:02:05]}  Ra4 {[%clk 0:01:11]} 27. Qd3 {[%clk 0:02:03]}  Rb8 {[%clk 0:01:02]} 28. e5 {[%clk 0:02:01]}  fxe5 {[%clk 0:00:59]} 29. fxe5 {[%clk 0:02:02]}  Qf5 {[%clk 0:00:59]} 30. Qxf5 {[%clk 0:01:58]}  gxf5 {[%clk 0:01:00]} 31. d6 {[%clk 0:01:57]}  cxd6 {[%clk 0:00:57]} 32. exd6 {[%clk 0:01:57]}  Kf8 {[%clk 0:00:55]} 33. Bd5 {[%clk 0:01:49]}  Bd4+ {[%clk 0:00:48]} 34. Kg2 {[%clk 0:01:49]}  Bc5 {[%clk 0:00:48]} 35. d7 {[%clk 0:01:42]}  Rd8 {[%clk 0:00:45]} 36. Re8+ {[%clk 0:01:40]} 1-0


[Site "https://www.chess.com"]